bitfinex/quotes_SOLUSD_20240809
["timestamp","ask_amount","ask_price","bid_price","bid_amount"]
[1723200551441,0.8040129,156.39,156.36,15.9878]
[1723200551615,0.8040129,156.39,156.38,6.3946]
[1723200552633,0.8040129,156.39,156.36,47.9647]
[1723200552634,0.8040129,156.39,156.37,6.395]
[1723200552837,36.1740129,156.39,156.37,6.395]
[1723200553031,36.1740129,156.39,156.38,6.3946]
[1723200553339,36.1740129,156.39,156.36,15.9878]
[1723200554241,35.37,156.37,156.33,15.9913]
[1723200554556,35.37,156.37,156.33,22.3877]
[1723200554947,35.37,156.37,156.34,6.3961]
[1723200555122,35.37,156.35,156.33,15.9913]
[1723200555925,35.37,156.35,156.32,6.397]
[1723200556125,35.37,156.33,156.31,6.3974]
[1723200556354,35.37,156.33,156.3,15.9946]
[1723200557412,35.37,156.33,156.32,6.3971]
[1723200557619,35.37,156.33,156.3,15.9946]
[1723200558045,35.37,156.33,156.3,22.3924]
[1723200558361,35.37,156.35,156.33,6.3965]
[1723200558562,35.37,156.35,156.32,15.992]
[1723200558734,35.37,156.35,156.33,6.3963]
[1723200558933,35.37,156.35,156.32,15.992]
[1723200559152,35.37,156.35,156.33,6.3967]
[1723200560359,35.37,156.37,156.35,6.3955]
[1723200560747,45.0,156.36,156.34,15.9899]
[1723200560960,35.37,156.35,156.34,15.9899]
[1723200561145,35.37,156.37,156.35,6.3957]
[1723200562044,35.37,156.37,156.36,6.3954]
[1723200562570,35.37,156.37,156.34,22.3858]
[1723200562858,35.37,156.37,156.35,6.3958]
[1723200563032,35.37,156.37,156.34,22.3861]
[1723200563232,35.37,156.37,156.29,31.9902]
[1723200563233,35.37,156.35,156.31,6.3973]
[1723200563549,35.37,156.33,156.3,15.9946]
[1723200563752,35.37,156.33,156.3,22.3924]
[1723200563944,35.37,156.33,156.31,6.3974]
[1723200564151,35.37,156.35,156.32,15.9921]
[1723200564463,45.0,156.36,156.34,6.3963]
[1723200564634,35.37,156.37,156.35,6.3957]
[1723200564836,36.1740129,156.39,156.3,56.64916965]
[1723200565058,36.1740129,156.39,156.31,16.571]
[1723200565360,36.1740129,156.39,156.36,15.988]
[1723200565859,36.1740129,156.39,156.37,6.395]
[1723200566054,0.8040129,156.39,156.36,15.988]
[1723200566252,0.8040129,156.39,156.38,6.3946]
[1723200566858,0.8040129,156.39,156.37,6.3949]
[1723200567541,0.8040129,156.39,156.38,6.3946]
[1723200568558,0.8040129,156.39,156.36,15.988]
[1723200569588,35.37,156.37,156.33,15.9914]
[1723200570064,0.8040129,156.39,156.35,15.989]
[1723200570065,36.1740129,156.39,156.35,15.989]
[1723200570239,0.8040129,156.39,156.31,16.571]
[1723200570443,0.8040129,156.39,156.32,1.27894221]
[1723200570764,0.8040129,156.39,156.31,16.571]
[1723200571074,36.1740129,156.39,156.35,6.3958]
[1723200571240,45.0,156.38,156.35,6.3958]
[1723200571632,45.0,156.38,156.36,6.3954]
[1723200571954,36.1740129,156.39,156.37,6.395]
[1723200572154,36.1740129,156.39,156.38,6.3946]
[1723200572332,81.1740129,156.39,156.36,15.9881]
[1723200572658,81.1740129,156.39,156.36,22.3834]
[1723200573743,81.1740129,156.39,156.19,31.03658844]
[1723200573744,19.22,156.36,156.25,10.34263496]
[1723200574070,6.1854,156.25,156.14,0.47558006]
[1723200574240,35.37,156.2,156.15,0.4755496]
[1723200574440,6.4005,156.24,156.15,0.4755496]
[1723200574865,35.37,156.19,156.18,6.4027]
[1723200575239,6.4013,156.22,156.17,22.4113]
[1723200575562,35.37,156.18,156.14,22.4152]
[1723200575769,35.37,156.15,156.14,22.4152]
[1723200575948,6.4024,156.2,156.14,22.4152]
[1723200575949,35.37,156.16,156.14,22.4152]
[1723200576157,45.0,156.21,156.14,16.0111]
[1723200576457,31.993,156.29,156.12,32.0259]
[1723200576458,35.37,156.19,156.18,6.4027]
[1723200577268,35.37,156.19,156.17,22.4113]
[1723200578152,35.37,156.19,156.14,16.0112]
[1723200578345,35.37,156.15,156.14,16.0112]
[1723200578955,35.37,156.15,156.14,22.4157]
[1723200580271,35.37,156.15,156.1,32.576]
[1723200580473,1.60102072,156.19,156.13,6.4048]
[1723200580883,35.37,156.14,156.13,6.4048]
[1723200581169,35.37,156.14,156.1,16.0145]
[1723200581370,35.37,156.11,156.1,22.4206]
[1723200581752,1.60102072,156.19,156.12,6.4053]
[1723200581958,71.4026,156.19,156.12,16.0124]
[1723200582172,35.37,156.15,156.12,16.0124]
[1723200582474,35.37,156.15,156.13,6.4048]
[1723200583275,35.37,156.15,156.12,22.4177]
[1723200583567,35.37,156.13,156.12,22.4177]
[1723200584068,35.37,156.13,156.12,16.0124]
[1723200584273,35.37,156.13,156.11,6.4054]
[1723200585152,41.775,156.13,156.08,6.4069]
[1723200585341,41.775,156.13,156.09,6.4065]
[1723200585342,35.37,156.1,156.09,6.4065]
[1723200585548,35.37,156.1,156.06,32.6634]
[1723200585765,35.37,156.08,156.07,6.4073]
[1723200586570,35.37,156.08,156.06,16.019]
[1723200586752,35.37,156.08,156.07,6.4073]
[1723200587178,6.4049,156.13,156.08,6.4069]
[1723200587467,35.37,156.14,156.09,0.48004218]
[1723200587676,35.37,156.14,156.13,6.4049]
[1723200587875,35.37,156.14,156.12,16.0123]
[1723200588172,35.37,156.14,156.13,6.4049]
[1723200588580,35.37,156.14,156.12,22.4175]
[1723200588879,6.4194,156.2,156.15,16.0099]
[1723200589083,35.37,156.16,156.15,16.0099]
[1723200589258,35.37,156.16,156.11,16.0136]
[1723200589461,35.37,156.14,156.13,6.4048]
[1723200590163,35.37,156.16,156.14,6.4042]
[1723200590374,6.4013,156.22,156.17,6.4031]
[1723200590583,35.37,156.19,156.17,6.4031]
[1723200590779,35.37,156.19,156.17,22.4112]
[1723200590949,35.37,156.19,156.18,6.4028]
[1723200591376,35.37,156.19,156.17,22.4113]
[1723200591676,35.37,156.19,156.13,16.0113]
[1723200591876,35.37,156.17,156.13,16.0113]
[1723200592256,35.37,156.17,156.16,6.4036]
[1723200593374,35.37,156.19,156.18,6.4027]
[1723200594074,35.37,156.19,156.17,22.4103]
[1723200594280,35.37,156.19,156.18,6.4028]
[1723200595379,35.37,156.19,156.17,16.0072]
[1723200595846,35.37,156.19,156.18,6.4028]
[1723200596045,35.37,156.21,156.19,6.402]
[1723200596270,35.37,156.21,156.18,6.4027]
[1723200596672,35.37,156.19,156.17,22.4104]
[1723200597656,35.37,156.19,156.18,6.4028]
[1723200598379,35.37,156.19,156.17,16.0072]
[1723200598882,35.37,156.19,156.15,6.404]
[1723200599188,35.37,156.16,156.15,6.404]
[1723200600491,35.37,156.16,156.14,16.0109]
[1723200600660,35.37,156.16,156.12,6.4052]
[1723200600986,35.37,156.14,156.12,6.4052]
[1723200601179,35.37,156.14,156.11,22.4195]
[1723200601958,35.37,156.12,156.09,21.8092]
[1723200602173,35.37,156.12,156.1,6.406]
[1723200603161,35.37,156.12,156.11,6.4057]
[1723200603364,35.37,156.16,156.14,6.4043]
[1723200603566,35.37,156.16,156.13,6.4048]
[1723200604169,35.37,156.16,156.14,6.4042]
[1723200604385,6.5511,156.24,156.14,0.47879184]
[1723200604584,35.37,156.19,156.18,6.4028]
[1723200604887,6.4009,156.23,156.18,16.0064]
[1723200604888,35.37,156.23,156.18,16.0064]
[1723200605087,35.37,156.23,156.22,6.4012]
[1723200605454,6.1744,156.28,156.23,16.0019]
[1723200605661,6.1744,156.28,156.15,0.47662663]
[1723200605662,35.37,156.24,156.15,0.47662663]
[1723200605891,35.37,156.18,156.13,21.7572]
[1723200606074,35.37,156.18,156.15,6.404]
[1723200606568,35.37,156.18,156.14,22.4155]
[1723200606769,35.37,156.18,156.15,6.404]
[1723200607114,35.37,156.18,156.16,6.4033]
[1723200607292,35.37,156.18,156.15,6.404]
[1723200608068,35.37,156.18,156.14,16.0111]
[1723200608388,35.37,156.18,156.17,22.4113]
[1723200608769,35.37,156.2,156.18,6.4024]
[1723200610194,35.37,156.24,156.18,6.4024]
[1723200610195,35.37,156.22,156.18,0.47770642]
[1723200610492,35.37,156.22,156.2,6.402]
[1723200611093,35.37,156.22,156.18,6.4024]
[1723200611269,35.37,156.22,156.19,6.4023]
[1723200612389,35.37,156.22,156.17,16.0081]
[1723200612390,35.37,156.22,156.18,6.4027]
[1723200612570,35.37,156.22,156.19,6.4024]
[1723200612967,35.37,156.22,156.18,6.4028]
[1723200613588,35.37,156.22,156.19,6.4024]
[1723200614094,35.37,156.22,156.19,16.0052]
[1723200614392,35.37,156.25,156.21,6.4015]
[1723200615286,35.37,156.25,156.19,16.0052]
[1723200615287,35.37,156.23,156.19,16.0052]
[1723200615479,35.37,156.21,156.16,36.009]
[1723200615881,35.37,156.21,156.19,6.4023]
[1723200616274,35.37,156.21,156.2,6.402]
[1723200617192,35.37,156.21,156.19,6.4023]
[1723200617801,35.37,156.21,156.18,22.4093]
[1723200618095,35.37,156.21,156.17,6.4032]
[1723200618293,35.37,156.21,156.18,6.4028]
[1723200618882,35.37,156.21,156.17,16.0081]
[1723200619893,6.1744,156.28,156.19,16.0054]
[1723200620102,6.1744,156.28,156.21,6.4014]
[1723200620103,35.37,156.24,156.21,6.4014]
[1723200621211,6.3999,156.26,156.22,16.339]
[1723200621375,12.4156,156.34,156.29,6.3982]
[1723200621580,35.37,156.3,156.26,6.3995]
[1723200621806,35.37,156.28,156.25,6.3996]
[1723200622132,35.37,156.26,156.22,16.339]
[1723200622283,35.37,156.26,156.23,6.4005]
[1723200622483,35.37,156.26,156.24,6.4003]
[1723200623006,35.37,156.26,156.22,22.7401]
[1723200623184,35.37,156.26,156.22,6.4011]
[1723200623390,35.37,156.26,156.23,16.0013]
[1723200623588,35.37,156.28,156.25,6.3996]
[1723200623789,35.37,156.3,156.24,0.47560021]
[1723200624003,35.37,156.3,156.27,22.3959]
[1723200624179,35.37,156.28,156.2,16.0042]
[1723200624385,35.37,156.23,156.2,16.0042]
[1723200624579,35.37,156.25,156.22,6.4012]
[1723200624781,35.37,156.25,156.2,16.0042]
[1723200624782,35.37,156.25,156.21,6.4015]
[1723200624982,35.37,156.23,156.2,22.4062]
[1723200625181,35.37,156.23,156.18,15.558]
[1723200625502,35.37,156.21,156.19,6.4024]
[1723200625692,35.37,156.23,156.2,6.402]
[1723200625890,35.37,156.23,156.21,6.4016]
[1723200626410,35.37,156.23,156.2,6.402]
[1723200627714,35.37,156.23,156.19,22.4077]
[1723200628012,35.37,156.23,156.2,6.402]
[1723200629392,35.37,156.23,156.21,0.47724782]
[1723200629705,35.37,156.27,156.26,6.3995]
[1723200629882,35.37,156.29,156.26,6.3995]
[1723200630080,35.37,156.29,156.28,6.3987]
[1723200630303,35.37,156.31,156.28,6.3987]
[1723200630609,15.0692,156.35,156.33,6.3967]
[1723200630782,35.37,156.35,156.33,15.9909]
[1723200630984,35.37,156.35,156.31,6.3974]
[1723200631206,35.37,156.35,156.27,0.4742942]
[1723200631207,35.37,156.33,156.26,16.5356]
[1723200631422,35.37,156.31,156.26,38.9337]
[1723200631601,41.7679,156.31,156.26,15.9989]
[1723200631800,35.37,156.31,156.26,22.3982]
[1723200632095,35.37,156.29,156.23,16.0017]
[1723200632293,41.7684,156.29,156.24,6.4]
[1723200632514,35.37,156.29,156.25,6.3998]
[1723200632805,35.37,156.29,156.26,6.3994]
[1723200633006,41.7684,156.29,156.25,15.9991]
[1723200633212,35.37,156.27,156.23,6.4008]
[1723200633387,35.37,156.27,156.22,22.4041]
[1723200633388,41.7692,156.27,156.22,22.4041]
[1723200633819,35.37,156.25,156.22,22.4041]
[1723200633994,35.37,156.25,156.2,6.4016]
[1723200634196,35.37,156.23,156.2,6.4016]
[1723200634720,35.37,156.23,156.19,16.0061]
[1723200634721,35.37,156.21,156.19,16.0061]
[1723200635011,35.37,156.23,156.2,6.402]
[1723200635194,35.37,156.23,156.19,16.0061]
[1723200635399,35.37,156.23,156.22,6.4012]
[1723200635608,35.37,156.25,156.22,6.4012]
[1723200635797,35.37,156.25,156.21,6.4015]
[1723200636196,35.37,156.23,156.2,6.402]
[1723200636630,35.37,156.27,156.25,6.3999]
[1723200636804,35.37,156.31,156.23,20.0]
[1723200637143,35.37,156.31,156.28,6.3984]
[1723200637300,35.37,156.33,156.24,0.47541635]
[1723200637501,35.37,156.35,156.28,15.996]
[1723200637693,35.37,156.35,156.24,0.47541635]
[1723200637694,35.37,156.29,156.24,16.0001]
[1723200637891,6.3987,156.28,156.24,16.0001]
[1723200638123,35.37,156.27,156.24,16.0001]
[1723200638299,6.4004,156.24,156.19,6.4023]
[1723200638497,6.4004,156.24,156.17,21.9575]
[1723200638498,35.37,156.23,156.2,6.4019]
[1723200638890,35.37,156.23,156.2,16.005]
[1723200639087,35.37,156.25,156.21,6.4015]
[1723200639415,35.37,156.25,156.22,6.4009]
[1723200639590,35.37,156.27,156.24,6.4003]
[1723200639796,35.37,156.25,156.22,16.0024]
[1723200640013,35.37,156.25,156.22,22.4036]
[1723200640517,35.37,156.25,156.23,6.4007]
[1723200640722,35.37,156.27,156.25,6.3998]
[1723200640937,35.37,156.29,156.26,6.3995]
[1723200641224,20.0,156.28,156.26,6.3995]
[1723200641602,20.0,156.28,156.25,6.3999]
[1723200641822,35.37,156.29,156.24,16.0004]
[1723200642210,35.37,156.31,156.27,6.3991]
[1723200643232,35.37,156.31,156.26,22.3977]
[1723200643519,41.7683,156.29,156.24,6.4]
[1723200643718,35.37,156.29,156.25,6.3999]
[1723200644029,35.37,156.31,156.27,6.3988]
[1723200644233,41.7675,156.31,156.26,6.3995]
[1723200644518,20.0,156.32,156.25,15.9993]
[1723200644519,35.37,156.29,156.25,15.9993]
[1723200644725,41.7686,156.29,156.25,15.9993]
[1723200645728,35.37,156.29,156.25,22.3992]
[1723200645924,35.37,156.31,156.25,15.9993]
[1723200646129,20.0,156.32,156.27,15.997]
[1723200646533,35.37,156.31,156.27,15.997]
[1723200647310,41.7685,156.29,156.25,15.7838]
[1723200647525,35.37,156.29,156.25,6.3999]
[1723200647736,35.37,156.29,156.25,15.9993]
[1723200648433,35.37,156.29,156.26,6.3992]
[1723200648625,6.3975,156.31,156.23,20.0]
[1723200648626,35.37,156.31,156.23,20.0]
[1723200648827,35.37,156.33,156.3,6.3975]
[1723200649005,35.37,156.31,156.27,6.3988]
[1723200649206,35.37,156.29,156.26,22.3981]
[1723200649404,35.37,156.29,156.26,15.9987]
[1723200649630,35.37,156.27,156.21,16.5254]
[1723200649831,35.37,156.25,156.21,16.5254]
[1723200650328,35.37,156.29,156.21,48.5326]
[1723200650531,35.37,156.29,156.26,6.3992]
[1723200654913,35.37,156.27,156.21,32.5291]
[1723200655221,35.37,156.27,156.24,6.4002]
[1723200655611,6.3984,156.29,156.23,16.0014]
[1723200655612,35.37,156.31,156.27,6.3988]
[1723200655832,35.37,156.31,156.25,15.9993]
[1723200655833,55.37,156.31,156.25,15.9993]
[1723200656212,20.0,156.31,156.28,6.3986]
[1723200656534,20.0,156.32,156.28,6.3986]
[1723200657144,26.3971,156.32,156.28,6.3986]
[1723200657929,6.3979,156.3,156.26,6.3995]
[1723200658432,35.37,156.31,156.25,6.3999]
[1723200658817,6.398,156.3,156.25,6.3999]
[1723200660325,41.7675,156.31,156.26,6.3994]
[1723200660540,41.7675,156.31,156.27,6.3991]
[1723200660738,35.37,156.31,156.28,6.3986]
[1723200661532,35.37,156.33,156.3,6.3979]
[1723200661739,41.7668,156.33,156.29,6.3983]
[1723200661918,41.7668,156.33,156.28,22.3949]
[1723200661919,6.3971,156.32,156.28,22.3949]
[1723200662109,35.37,156.31,156.25,15.9996]
[1723200663020,41.7677,156.31,156.27,6.3991]
[1723200663749,41.7677,156.31,156.26,6.3994]
[1723200663946,35.37,156.27,156.22,16.0025]
[1723200664120,35.37,156.27,156.21,48.533]
[1723200664433,35.37,156.27,156.25,6.3999]
[1723200664638,35.37,156.31,156.25,31.9986]
[1723200665147,259.2,156.43,156.3,6.3979]
[1723200665148,35.37,156.33,156.3,6.3979]
[1723200665541,35.37,156.33,156.29,22.3938]
[1723200666448,35.37,156.33,156.3,6.3978]
[1723200666954,35.37,156.35,156.31,15.9934]
[1723200667242,35.37,156.33,156.28,32.2968]
[1723200667743,6.3971,156.32,156.28,32.2968]
[1723200667944,22.494,156.37,156.25,31.9986]
[1723200667945,35.37,156.29,156.25,15.9994]
[1723200668131,35.37,156.29,156.25,22.3993]
[1723200668447,35.37,156.27,156.25,22.3993]
[1723200668844,35.37,156.27,156.22,16.0026]
[1723200668845,6.3996,156.26,156.22,16.0026]
[1723200669055,35.37,156.23,156.15,16.0018]
[1723200669231,35.37,156.21,156.19,6.4024]
[1723200669931,35.37,156.21,156.15,16.0018]
[1723200669932,35.37,156.23,156.16,20.0]
[1723200670136,35.37,156.25,156.2,16.0044]
[1723200670446,35.37,156.27,156.24,6.4004]
[1723200670646,35.37,156.27,156.24,6.4003]
[1723200670946,35.37,156.27,156.25,6.3999]
[1723200671149,35.37,156.27,156.22,16.0021]
[1723200671325,35.37,156.27,156.23,6.4005]
[1723200671523,35.37,156.27,156.25,6.3999]
[1723200671948,35.37,156.27,156.22,16.0021]
[1723200672326,35.37,156.27,156.24,6.4003]
[1723200672526,35.37,156.27,156.22,16.0021]
[1723200672840,35.37,156.27,156.23,6.4004]
[1723200673223,35.37,156.29,156.24,16.0002]
[1723200673432,35.37,156.29,156.26,6.3995]
[1723200674149,35.37,156.29,156.27,6.3991]
[1723200674747,35.37,156.29,156.24,16.0002]
[1723200674959,35.37,156.27,156.24,16.0002]
[1723200675247,36.96975556,156.32,156.23,6.4004]
[1723200675248,36.96994159,156.32,156.23,6.4004]
[1723200675451,35.37,156.25,156.22,6.4011]
[1723200676746,35.37,156.25,156.23,6.4007]
[1723200678064,35.37,156.25,156.22,6.4011]
[1723200678629,35.37,156.23,156.2,6.4019]
[1723200678828,35.37,156.23,156.18,16.0066]
[1723200678829,35.37,156.21,156.18,22.4094]
[1723200679235,35.37,156.21,156.18,16.0066]
[1723200679444,35.37,156.23,156.18,16.0066]
[1723200679829,35.37,156.21,156.18,16.0066]
[1723200680248,35.37,156.19,156.15,16.0099]
[1723200680443,35.37,156.19,156.12,20.0]
[1723200680754,35.37,156.21,156.17,16.0075]
[1723200680963,35.37,156.21,156.19,6.4023]
[1723200681454,35.37,156.21,156.2,6.402]
[1723200682181,35.37,156.21,156.19,16.0054]
[1723200682535,35.37,156.21,156.19,22.4076]
[1723200683047,35.37,156.21,156.19,16.0054]
[1723200683245,35.37,156.23,156.19,16.0054]
[1723200683454,35.37,156.23,156.22,6.4012]
[1723200683645,35.37,156.25,156.21,16.0034]
[1723200683831,35.37,156.25,156.22,6.4011]
[1723200684227,35.37,156.23,156.2,6.4017]
[1723200684447,35.37,156.21,156.19,6.4023]
[1723200684634,35.37,156.21,156.18,16.0068]
[1723200684835,35.37,156.21,156.18,22.4095]
[1723200685036,35.37,156.21,156.17,6.4032]
[1723200685237,35.37,156.19,156.17,6.4032]
[1723200685859,35.37,156.21,156.2,6.402]
[1723200686435,35.37,156.23,156.21,6.4015]
[1723200686938,35.37,156.23,156.2,6.4019]
[1723200687536,35.37,156.23,156.19,16.0053]
[1723200687537,35.37,156.21,156.19,16.0053]
[1723200688052,35.37,156.21,156.18,6.4028]
[1723200690665,35.37,156.19,156.17,6.4032]
[1723200691165,35.37,156.21,156.2,6.4019]
[1723200691353,35.37,156.23,156.22,6.4012]
[1723200692267,35.37,156.25,156.22,6.4012]
[1723200692562,20.0,156.24,156.21,22.405]
[1723200693342,35.37,156.25,156.21,16.0035]
[1723200695056,35.37,156.25,156.24,6.4004]
[1723200695568,41.5602,156.29,156.19,48.02991149]
[1723200695746,35.37,156.29,156.27,6.3991]
[1723200695948,35.37,156.29,156.25,15.9994]
[1723200696258,35.37,156.31,156.28,6.3987]
[1723200696840,35.37,156.29,156.26,6.3993]
[1723200697463,35.37,156.29,156.27,6.399]
[1723200698264,35.37,156.29,156.26,6.3992]
[1723200699053,35.37,156.27,156.22,16.0029]
[1723200699246,35.37,156.25,156.22,16.0029]
[1723200699447,35.37,156.23,156.19,31.5469]
[1723200699673,35.37,156.23,156.19,22.4079]
[1723200700040,35.37,156.23,156.2,6.4019]
[1723200700867,35.37,156.23,156.22,6.4012]
[1723200701076,35.37,156.25,156.21,22.4051]
[1723200701252,35.37,156.23,156.21,22.4051]
[1723200701453,35.37,156.23,156.22,6.4012]
[1723200702975,41.771,156.23,156.18,22.4097]
[1723200703276,35.37,156.21,156.2,6.402]
[1723200704178,35.37,156.21,156.19,6.4023]
[1723200704356,35.37,156.21,156.18,16.0069]
[1723200704561,35.37,156.21,156.18,22.4097]
[1723200705184,35.37,156.19,156.14,16.2793]
[1723200705386,35.37,156.16,156.15,16.01]
[1723200705685,35.37,156.16,156.12,6.4051]
[1723200705872,1.60105534,156.17,156.11,48.0425]
[1723200705873,35.37,156.13,156.11,22.4196]
[1723200706666,1.60144025,156.12,156.07,16.0176]
[1723200706880,35.37,156.09,156.07,16.0176]
[1723200707885,35.37,156.13,156.12,6.4052]
[1723200708862,35.37,156.15,156.13,6.4048]
[1723200709067,35.37,156.15,156.12,22.4185]
[1723200709293,35.37,156.15,156.13,6.4046]
[1723200709589,6.5438,156.18,156.12,16.0133]
[1723200709590,35.37,156.17,156.12,16.0133]
[1723200710159,35.37,156.17,156.14,6.4044]
[1723200711083,35.37,156.17,156.13,6.4048]
[1723200711678,21.8722,156.22,156.16,6.4036]
[1723200711869,35.37,156.19,156.16,6.4036]
[1723200712069,35.37,156.19,156.18,22.4099]
[1723200712382,35.37,156.21,156.18,16.0071]
[1723200713091,35.37,156.21,156.19,6.4021]
[1723200713582,35.37,156.21,156.18,22.4099]
[1723200714081,35.37,156.23,156.2,6.402]
[1723200714283,35.37,156.25,156.2,16.0041]
[1723200714466,35.37,156.25,156.23,6.4006]
[1723200714664,35.37,156.27,156.24,6.4004]
[1723200715079,35.37,156.25,156.21,6.4012]
[1723200715378,35.37,156.23,156.2,22.4067]
[1723200715583,22.4117,156.3,156.2,16.005]
[1723200715584,35.37,156.25,156.2,16.005]
[1723200715777,35.37,156.25,156.22,16.0022]
[1723200715972,35.37,156.27,156.24,16.0002]
[1723200716172,35.37,156.29,156.24,16.0002]
[1723200716378,35.37,156.29,156.27,6.3988]
[1723200716691,35.37,156.33,156.28,15.9959]
[1723200716982,35.37,156.35,156.31,6.3974]
[1723200717193,35.37,156.32,156.31,6.3974]
[1723200717392,35.37,156.32,156.26,15.9979]
[1723200717565,35.37,156.3,156.27,6.3988]
[1723200717874,35.37,156.28,156.26,22.3974]
[1723200718368,35.37,156.28,156.23,16.0017]
[1723200718573,35.37,156.25,156.24,6.4004]
[1723200719791,35.37,156.25,156.23,22.4025]
[1723200720493,35.37,156.25,156.23,16.0017]
[1723200720697,35.37,156.25,156.23,22.4024]
[1723200720877,35.37,156.25,156.24,6.4004]
[1723200721190,35.37,156.27,156.26,6.3994]
[1723200721563,35.37,156.27,156.23,16.0017]
[1723200721564,35.37,156.27,156.24,6.4]
[1723200721783,35.37,156.27,156.25,6.3999]
[1723200722169,35.37,156.27,156.23,16.0017]
[1723200722170,35.37,156.27,156.23,22.4021]
[1723200722373,35.37,156.24,156.2,6.4019]
[1723200722593,35.37,156.22,156.2,6.4019]
[1723200723075,35.37,156.24,156.23,6.4008]
[1723200724094,35.37,156.24,156.21,16.0033]
[1723200724095,35.37,156.24,156.22,6.4011]
[1723200724278,35.37,156.24,156.21,16.0033]
[1723200724473,35.37,156.22,156.18,16.0069]
[1723200724703,35.37,156.19,156.16,6.4036]
[1723200724885,35.37,156.19,156.17,6.4032]
[1723200725194,35.37,156.19,156.14,31.9768]
[1723200725195,35.37,156.19,156.14,16.0105]
[1723200725373,35.37,156.19,156.14,22.4146]
[1723200725374,35.37,156.16,156.14,22.4146]
[1723200726201,35.37,156.16,156.15,6.404]
[1723200727093,35.37,156.16,156.14,16.0105]
[1723200727298,45.0,156.15,156.11,16.014]
[1723200727494,35.37,156.13,156.12,6.4053]
[1723200727700,80.37,156.15,156.13,6.4047]
[1723200728393,1.60127867,156.14,156.11,22.4194]
[1723200728787,35.37,156.13,156.11,22.4194]
[1723200729294,16.0048,156.21,156.07,32.0361]
[1723200729295,35.37,156.17,156.13,16.0116]
[1723200729594,35.37,156.19,156.17,6.4031]
[1723200730306,35.37,156.19,156.16,6.4036]
[1723200730679,35.37,156.24,156.11,16.0133]
[1723200730680,35.37,156.17,156.11,16.0133]
[1723200731087,35.37,156.17,156.13,6.4045]
[1723200731291,35.37,156.17,156.15,6.404]
[1723200731601,22.1479,156.23,156.18,6.4028]
[1723200731602,35.37,156.19,156.18,6.4028]
[1723200731905,35.37,156.21,156.18,6.4028]
[1723200732293,35.37,156.19,156.13,16.0118]
[1723200732494,35.37,156.17,156.13,16.0118]
[1723200732897,6.1453,156.23,156.16,6.4033]
[1723200732898,35.37,156.19,156.16,6.4033]
[1723200733284,35.37,156.19,156.17,6.4031]
[1723200734103,35.37,156.21,156.18,6.4028]